bitfinex/quotes_BTCUSD_20220207
["timestamp","ask_amount","ask_price","bid_price","bid_amount"]
[1644269333241,0.05,43949.0,43942.0,0.0011]
[1644269333641,0.08882455,43945.0,43942.0,0.0011]
[1644269333841,0.33465934,43945.0,43942.0,0.0011]
[1644269335042,0.24583479,43945.0,43942.0,0.0011]
[1644269335845,0.24583479,43945.0,43943.0,0.323708]
[1644269336045,0.0208312,43946.0,43943.0,0.373708]
[1644269337091,0.22120293,43948.0,43943.0,0.373708]
[1644269337290,0.22120293,43948.0,43943.0,0.05]
[1644269337495,0.08580638,43947.0,43943.0,0.05]
[1644269337690,0.08580638,43947.0,43942.0,0.05180492]
[1644269337890,0.05,43944.0,43942.0,0.00180492]
[1644269338095,0.66146278,43943.0,43942.0,0.00180492]
[1644269338291,0.66146278,43943.0,43942.0,0.0011]
[1644269339293,0.66146278,43943.0,43936.0,0.003]
[1644269339491,0.05,43939.0,43936.0,0.003]
[1644269340589,0.373708,43939.0,43936.0,0.003]
[1644269340833,0.85,43938.0,43935.0,0.0031]
[1644269341037,0.05,43939.0,43930.0,0.0033]
[1644269341038,0.323708,43935.0,43930.0,0.0011]
[1644269341235,0.05,43931.0,43930.0,0.0011]
[1644269341436,0.373708,43931.0,43930.0,0.0011]
[1644269343240,0.6759087,43931.0,43930.0,0.0011]
[1644269343836,0.05,43931.0,43930.0,0.0011]
[1644269344337,0.08277204,43932.0,43930.0,0.0011]
[1644269344587,0.323708,43931.0,43930.0,0.0011]
[1644269345285,0.05,43932.0,43930.0,0.0011]
[1644269345493,0.02062742,43934.0,43930.0,0.0011]
[1644269345887,0.05,43931.0,43930.0,0.0011]
[1644269346586,0.373708,43931.0,43930.0,0.0011]
[1644269347388,0.05,43931.0,43930.0,0.0011]
[1644269347790,0.373708,43931.0,43930.0,0.0011]
[1644269347996,0.95,43930.0,43928.0,0.00070512]
[1644269348252,0.95,43930.0,43927.0,0.0021]
[1644269348253,0.323708,43929.0,43922.0,0.00282089]
[1644269348449,0.373708,43925.0,43922.0,0.00282089]
[1644269349046,0.373708,43925.0,43920.0,0.06391336]
[1644269351757,0.323708,43924.0,43922.0,0.00070518]
[1644269351992,0.373708,43923.0,43922.0,0.00070518]
[1644269352587,0.373708,43923.0,43920.0,0.06391336]
[1644269352787,0.40864476,43922.0,43920.0,0.06461856]
[1644269352989,0.40864476,43922.0,43920.0,0.0007052]
[1644269353193,0.0455,43921.0,43920.0,0.0007052]
[1644269353390,1.35,43920.0,43901.0,0.01352644]
[1644269353589,0.323708,43919.0,43901.0,0.01352644]
[1644269353789,0.19693881,43907.0,43901.0,0.01352644]
[1644269354287,0.05,43903.0,43901.0,0.01352644]
[1644269355389,0.05,43905.0,43901.0,0.01352644]
[1644269355588,0.323708,43904.0,43901.0,0.01352644]
[1644269356036,0.08614835,43903.0,43901.0,0.01352644]
[1644269357638,0.373708,43902.0,43901.0,0.01352644]
[1644269357838,0.67458602,43902.0,43901.0,0.01352644]
[1644269358544,0.67458602,43902.0,43894.0,0.001]
[1644269358545,0.95,43900.0,43894.0,0.001]
[1644269358742,0.05,43895.0,43894.0,0.001]
[1644269358937,0.05,43895.0,43885.0,0.0022]
[1644269358938,0.71853152,43895.0,43885.0,0.0022]
[1644269359138,0.05,43892.0,43885.0,0.0022]
[1644269359341,0.15628007,43899.0,43885.0,0.0022]
[1644269359342,0.55,43890.0,43885.0,0.0022]
[1644269359588,0.04951,43886.0,43885.0,0.0022]
[1644269360590,0.65,43882.0,43864.0,0.03516374]
[1644269360787,0.04951,43876.0,43864.0,0.03467374]
[1644269360990,0.3,43885.0,43873.0,0.00049]
[1644269361193,0.0887206,43877.0,43876.0,0.0007007]
[1644269361390,0.09501,43884.0,43876.0,0.0011907]
[1644269361591,0.0455,43884.0,43881.0,0.00049]
[1644269361790,0.323708,43883.0,43876.0,0.0007007]
[1644269362289,0.25874535,43877.0,43872.0,0.00049]
[1644269362490,0.323708,43876.0,43872.0,0.00049]
[1644269362691,0.07175576,43878.0,43875.0,0.00159]
[1644269362891,0.02089204,43879.0,43877.0,0.00049]
[1644269363091,0.323708,43878.0,43875.0,0.0011]
[1644269363342,0.02089204,43879.0,43875.0,0.0011]
[1644269363844,0.02089204,43879.0,43875.0,0.00128869]
[1644269364039,0.02089204,43879.0,43878.0,0.00049]
[1644269364240,0.02089204,43879.0,43876.0,0.00018869]
[1644269364440,0.323708,43878.0,43875.0,0.00128869]
[1644269364640,0.02089204,43879.0,43877.0,0.00049]
[1644269365139,0.02044809,43880.0,43877.0,0.00049]
[1644269365940,0.02044809,43880.0,43872.0,0.18665761]
[1644269366140,0.02044809,43880.0,43876.0,0.0007007]
[1644269366993,0.02044809,43880.0,43870.0,0.07836946]
[1644269367185,0.02044809,43880.0,43869.0,0.2]
[1644269367586,0.04156875,43880.0,43873.0,0.323708]
[1644269367787,0.02112066,43880.0,43879.0,0.1936375]
[1644269368187,0.02112066,43880.0,43879.0,0.31122253]
[1644269368386,0.02112066,43880.0,43879.0,1.24010381]
[1644269369087,0.018522,43884.0,43879.0,1.24010381]
[1644269369288,0.018522,43884.0,43880.0,0.369208]
[1644269369690,0.018522,43884.0,43881.0,0.0829269]
[1644269369887,0.018522,43884.0,43882.0,0.323708]
[1644269370086,0.018522,43884.0,43883.0,0.323708]
[1644269370287,0.018522,43884.0,43881.0,0.05]
[1644269370489,0.018522,43884.0,43882.0,0.323708]
[1644269370742,0.018522,43884.0,43882.0,0.373708]
[1644269370942,0.018522,43884.0,43883.0,0.323708]
[1644269371142,0.01817853,43887.0,43883.0,0.369208]
[1644269371345,0.01817853,43887.0,43883.0,0.519208]
[1644269371550,0.01817853,43887.0,43884.0,0.323708]
[1644269371742,0.01817853,43887.0,43885.0,0.0455]
[1644269371943,0.01817853,43887.0,43886.0,0.54681051]
[1644269372144,0.01817853,43887.0,43886.0,0.369208]
[1644269372347,0.01817853,43887.0,43880.0,0.0455]
[1644269372847,0.05,43882.0,43873.0,0.00070079]
[1644269373045,0.05,43886.0,43871.0,0.02]
[1644269373244,0.08846469,43882.0,43874.0,0.07448]
[1644269373544,0.05,43886.0,43874.0,0.20578]
[1644269373945,0.3,43888.0,43874.0,0.25578]
[1644269374148,0.3,43888.0,43874.0,0.30578]
[1644269374497,0.44489599,43889.0,43881.0,0.07054372]
[1644269374694,0.25519531,43887.0,43881.0,0.07054372]
[1644269374891,0.07029599,43889.0,43881.0,0.07054372]
[1644269375094,0.01822856,43888.0,43877.0,0.20002881]
[1644269375292,0.01822856,43888.0,43873.0,0.00069802]
[1644269375493,0.01822856,43888.0,43871.0,0.02]
[1644269376192,0.01822856,43888.0,43877.0,0.23735538]
[1644269376393,0.06547572,43887.0,43879.0,0.06853209]
[1644269376797,0.28179552,43888.0,43879.0,0.06853209]
[1644269376993,0.05,43886.0,43879.0,0.06853209]
[1644269377195,0.05,43881.0,43871.0,0.02]
[1644269377395,0.30487126,43887.0,43871.0,0.02]
[1644269377995,0.30487126,43887.0,43875.0,0.2133665]
[1644269378243,0.05,43881.0,43873.0,0.23305743]
[1644269378443,0.07580078,43885.0,43873.0,0.23305743]
[1644269378645,0.17679552,43888.0,43873.0,0.23305743]
[1644269378945,0.00022979,43890.0,43873.0,0.23305743]
[1644269379146,0.3,43893.0,43874.0,0.0455]
[1644269379350,0.00069545,43890.0,43874.0,0.0455]
[1644269379547,0.02019684,43884.0,43874.0,0.0455]
[1644269379745,0.02019684,43884.0,43875.0,0.66287948]
[1644269379943,0.02019684,43884.0,43880.0,0.22561956]
[1644269380145,0.01847104,43884.0,43882.0,0.63461393]
[1644269380444,0.01847104,43884.0,43883.0,0.323708]
[1644269380643,0.01847104,43884.0,43883.0,0.423708]
[1644269381244,0.02040818,43888.0,43883.0,0.423708]
[1644269381545,0.02040818,43888.0,43887.0,0.26814403]
[1644269381747,0.02040818,43888.0,43887.0,0.64185203]
[1644269381995,0.02040818,43888.0,43887.0,0.69185203]
[1644269382186,0.02040818,43888.0,43887.0,0.79185203]
[1644269382386,0.02040818,43888.0,43887.0,0.523708]
[1644269382986,0.02040818,43888.0,43887.0,0.323708]
[1644269383189,0.02040818,43888.0,43887.0,0.373708]
[1644269383388,0.02040818,43888.0,43887.0,0.423708]
[1644269383787,0.01878812,43892.0,43889.0,0.323708]
[1644269384188,0.00069274,43890.0,43889.0,0.37389623]
[1644269384386,0.00069274,43890.0,43889.0,0.60006568]
[1644269384590,0.00069274,43890.0,43889.0,0.55006568]
[1644269385086,0.01878812,43892.0,43889.0,0.55006568]
[1644269385287,0.00069272,43892.0,43889.0,0.55025391]
[1644269385487,0.13869588,43898.0,43889.0,0.55025391]
[1644269385938,0.13869588,43898.0,43889.0,0.22654591]
[1644269386136,0.05,43901.0,43896.0,0.0706321]
[1644269386338,0.323708,43900.0,43896.0,0.07828957]
[1644269386537,0.323708,43900.0,43890.0,0.00018823]
[1644269386538,0.32013343,43900.0,43890.0,0.00018823]
[1644269386738,0.05,43901.0,43886.0,0.00018823]
[1644269386939,0.4882,43907.0,43887.0,0.02035348]
[1644269387145,0.4882,43907.0,43888.0,0.0455]
[1644269387146,0.05,43905.0,43888.0,0.0455]
[1644269387339,0.05,43905.0,43903.0,0.08346918]
[1644269387539,0.323981,43904.0,43903.0,0.34804069]
[1644269387737,0.02117159,43906.0,43890.0,0.00018823]
[1644269387942,0.07117159,43906.0,43891.0,0.323951]
[1644269388139,0.07117159,43906.0,43890.0,0.04568823]
[1644269388340,0.07117159,43906.0,43894.0,0.24489325]
[1644269388538,0.07117159,43906.0,43891.0,0.00018823]
[1644269388743,0.06776903,43905.0,43898.0,0.06672527]
[1644269388941,0.323951,43904.0,43895.0,0.23536132]
[1644269389240,0.05,43903.0,43895.0,0.23536132]
[1644269389501,0.323951,43902.0,43895.0,0.23536132]
[1644269389701,0.19599756,43900.0,43895.0,0.23536132]
[1644269390097,0.19599756,43900.0,43895.0,0.23554955]
[1644269390397,0.19599756,43900.0,43895.0,0.00018823]
[1644269390598,0.323951,43899.0,43894.0,0.00018823]
[1644269390796,0.323951,43899.0,43891.0,0.00018823]
[1644269390996,0.24599756,43900.0,43891.0,0.00018823]
[1644269391195,0.24599756,43900.0,43888.0,0.01654325]
[1644269391397,0.06484577,43897.0,43895.0,0.02100848]
[1644269391596,0.323951,43896.0,43895.0,0.02100848]
[1644269391998,0.00069286,43897.0,43895.0,0.02100848]
[1644269392196,0.00069286,43897.0,43895.0,0.01652955]
[1644269392401,0.323951,43896.0,43895.0,0.01652955]
[1644269392697,0.00069285,43898.0,43895.0,0.01652955]
[1644269393540,0.24599756,43900.0,43895.0,0.10602567]
[1644269393741,0.00069284,43899.0,43895.0,0.10602567]
[1644269394143,0.05,43896.0,43895.0,0.01152955]
[1644269394344,0.373951,43896.0,43895.0,0.01152955]
[1644269396445,1.35,43895.0,43886.0,0.02153716]
[1644269396644,0.369451,43894.0,43886.0,0.02153716]
[1644269397004,0.373951,43887.0,43886.0,0.0431264]
[1644269397297,0.71258438,43887.0,43886.0,0.02158924]
[1644269397500,0.373951,43887.0,43886.0,0.02158924]
[1644269397898,0.05,43887.0,43886.0,0.02158924]
[1644269399198,0.05,43887.0,43883.0,0.25702252]
[1644269399601,0.05,43893.0,43884.0,0.323951]
[1644269399799,0.00069285,43894.0,43883.0,0.30702252]
[1644269400002,0.00069285,43894.0,43883.0,0.35252252]
[1644269400198,0.00069285,43894.0,43887.0,0.25589425]
[1644269400399,0.00069285,43894.0,43893.0,0.20989535]
[1644269400739,0.27414705,43896.0,43893.0,0.20989535]
[1644269400740,0.0210899,43896.0,43893.0,0.20989535]
[1644269400941,0.02178277,43896.0,43893.0,0.20989535]
[1644269401241,0.00069287,43896.0,43889.0,0.324002]
[1644269401741,0.00069287,43896.0,43888.0,0.38397021]
[1644269401742,0.05,43895.0,43888.0,0.38397021]
[1644269402140,0.00069288,43895.0,43891.0,0.25691315]
[1644269403242,0.01832626,43904.0,43891.0,0.25691315]
[1644269403442,0.05,43898.0,43891.0,0.25691315]
[1644269403643,0.00069288,43895.0,43891.0,0.25691315]
[1644269403842,0.00069288,43895.0,43892.0,0.324002]
[1644269404042,0.00069288,43895.0,43891.0,0.05]
[1644269404242,0.00069288,43895.0,43889.0,0.05]
[1644269404495,0.01832626,43904.0,43890.0,0.324002]
[1644269404790,0.00069288,43895.0,43890.0,0.424002]
[1644269405292,0.00069288,43895.0,43890.0,0.474002]
[1644269405489,0.26275162,43902.0,43892.0,0.19076463]
[1644269405689,0.26275162,43902.0,43892.0,0.29076463]
[1644269405890,0.00069288,43895.0,43892.0,0.29076463]
[1644269406090,0.00069288,43895.0,43893.0,0.324002]
[1644269406692,0.26275162,43902.0,43893.0,0.324002]
[1644269406892,0.05,43903.0,43893.0,0.324002]
[1644269406893,0.05,43903.0,43899.0,0.06623133]
[1644269407694,0.3,43902.0,43892.0,0.39044866]
[1644269407897,0.25435447,43902.0,43892.0,0.29044866]
[1644269408353,0.05069279,43903.0,43892.0,0.29044866]
[1644269409156,0.0191023,43904.0,43899.0,0.06959466]
[1644269409355,0.24470123,43907.0,43899.0,0.06959466]
[1644269409556,0.00069283,43900.0,43899.0,0.06959466]
[1644269409857,0.00069283,43900.0,43899.0,0.6937861]
[1644269410054,0.00069283,43900.0,43899.0,0.7437861]
[1644269410255,0.00069283,43900.0,43899.0,0.8937861]
[1644269410460,0.2859835,43911.0,43909.0,0.08013946]
[1644269411255,0.26789223,43911.0,43909.0,0.08013946]
[1644269411454,0.05,43912.0,43909.0,0.08013946]
[1644269411658,0.19352852,43918.0,43909.0,0.08013946]
[1644269411858,0.0006927,43912.0,43909.0,0.08013946]
[1644269412694,0.30239877,43915.0,43909.0,0.08013946]
[1644269412895,0.05,43915.0,43909.0,0.08013946]
[1644269413103,0.00069269,43913.0,43909.0,0.08013946]
[1644269413696,0.00069269,43913.0,43909.0,0.13013946]
[1644269413898,0.05,43912.0,43909.0,0.05]
[1644269414100,0.05,43912.0,43905.0,0.0455]
[1644269414298,0.00069269,43913.0,43905.0,0.0455]
[1644269414498,0.05,43912.0,43905.0,0.0455]
[1644269414697,0.00069269,43913.0,43905.0,0.0455]
[1644269414999,0.00069269,43913.0,43906.0,0.08018079]
[1644269415297,0.0946969,43914.0,43906.0,0.22568079]
[1644269415496,0.00069271,43911.0,43906.0,0.22568079]
[1644269415750,0.00069271,43911.0,43907.0,0.26801423]
[1644269416346,0.0946969,43914.0,43907.0,0.26801423]
[1644269416747,0.00069271,43911.0,43907.0,0.26801423]
[1644269417247,0.00069271,43911.0,43908.0,0.374002]
[1644269417447,0.00069271,43911.0,43908.0,0.424002]
[1644269417648,0.29067785,43914.0,43908.0,0.1]
[1644269417849,0.29067785,43914.0,43908.0,0.05]
[1644269417850,0.0006927,43912.0,43908.0,0.05]
[1644269418050,0.0006927,43912.0,43909.0,0.05]
[1644269418253,0.0006927,43912.0,43906.0,0.12568079]
[1644269418448,0.0006927,43912.0,43906.0,0.22568079]
[1644269418850,0.0946969,43914.0,43909.0,0.26512007]
[1644269419049,0.00064588,43911.0,43909.0,0.26512007]
[1644269419249,0.00064588,43911.0,43909.0,0.31512007]
[1644269419499,0.0946969,43910.0,43909.0,0.36503807]
[1644269420095,0.0946969,43910.0,43909.0,0.26512007]
[1644269420295,0.0946969,43910.0,43906.0,0.12568079]
[1644269420496,0.0946969,43910.0,43906.0,0.17568079]
[1644269421196,0.31933037,43907.0,43906.0,0.0455]
[1644269421398,0.31933037,43907.0,43903.0,0.05]
[1644269421697,0.55161516,43909.0,43899.0,0.11945325]
[1644269421896,0.2547034,43909.0,43900.0,0.324002]
[1644269422397,0.07437749,43909.0,43902.0,0.06337356]
[1644269422699,0.07437749,43909.0,43903.0,0.25157663]
[1644269423346,0.0946969,43910.0,43904.0,0.19327344]
[1644269423743,0.02022079,43915.0,43906.0,1.35]
[1644269423944,0.00066431,43908.0,43907.0,0.369502]
[1644269424143,0.00051082,43908.0,43907.0,0.419502]
[1644269424341,0.00051082,43908.0,43907.0,0.519502]
[1644269424746,0.1,43909.0,43907.0,0.519502]
[1644269424942,0.1,43909.0,43908.0,0.324002]
[1644269425245,0.1,43909.0,43908.0,0.374002]
[1644269425442,0.1,43909.0,43908.0,0.474002]
[1644269426245,0.1,43909.0,43908.0,0.519502]
[1644269427698,0.1,43909.0,43908.0,0.419502]
[1644269428096,0.1,43909.0,43908.0,0.374002]
[1644269429696,0.1,43909.0,43908.0,0.474002]
[1644269430940,0.1,43909.0,43908.0,0.374002]
[1644269433748,0.1,43909.0,43908.0,0.324002]
[1644269434043,0.1,43909.0,43900.0,0.01871965]
[1644269434044,0.15,43909.0,43900.0,0.01871965]
[1644269434502,0.1,43909.0,43900.0,0.01871965]
[1644269434897,0.36188431,43909.0,43900.0,0.21780074]
[1644269435298,0.1,43909.0,43905.0,0.08858241]
[1644269435700,0.1,43909.0,43905.0,0.18858241]
[1644269435900,0.09970849,43909.0,43905.0,0.18858241]
[1644269436602,0.09970849,43909.0,43905.0,0.43723883]
[1644269436798,0.09970849,43909.0,43905.0,0.28858241]
[1644269437999,0.09970849,43909.0,43905.0,0.18858241]
[1644269438645,0.05,43906.0,43898.0,0.0192653]
[1644269438847,0.05,43899.0,43898.0,0.0192653]
[1644269439050,0.05,43899.0,43898.0,0.3432673]
[1644269439247,0.49741085,43908.0,43898.0,0.3432673]
[1644269439248,0.05,43904.0,43898.0,0.36484576]
[1644269439446,0.05,43904.0,43898.0,0.02157846]
[1644269439643,0.26122775,43903.0,43898.0,0.02157846]
[1644269440043,0.25122775,43903.0,43898.0,0.02157846]
[1644269440244,0.06668935,43903.0,43898.0,0.02157846]
[1644269441043,0.05,43907.0,43898.0,0.02157846]
[1644269441446,0.05,43907.0,43897.0,0.1]
[1644269441654,0.05,43907.0,43896.0,0.12979424]
[1644269442117,0.29176201,43906.0,43897.0,0.05]
[1644269442416,0.07042273,43904.0,43896.0,0.12979424]
[1644269443315,0.07042273,43904.0,43896.0,0.05]
[1644269443517,0.07042273,43904.0,43895.0,0.28701328]
[1644269443817,0.05,43905.0,43895.0,0.23701328]
[1644269444016,0.05,43905.0,43895.0,0.33701328]
[1644269444616,0.05,43905.0,43897.0,0.23176559]
[1644269445015,0.13623982,43905.0,43898.0,0.07404012]
[1644269445417,0.08623982,43905.0,43898.0,0.07404012]
[1644269446854,0.08623982,43905.0,43898.0,0.3343647]
[1644269447552,0.08623982,43905.0,43898.0,0.07404012]
[1644269447751,0.08623982,43905.0,43898.0,0.12404012]
[1644269448151,0.05,43904.0,43898.0,0.12404012]
[1644269448552,0.34491707,43904.0,43895.0,0.05]
[1644269448753,0.05,43904.0,43894.0,0.47545263]
[1644269448953,0.31980849,43909.0,43895.0,0.68993879]
[1644269449154,0.05,43907.0,43895.0,0.33654131]
[1644269449356,0.05,43907.0,43895.0,0.46093996]
[1644269449603,0.01820845,43905.0,43896.0,0.324002]
[1644269449804,0.01820845,43905.0,43899.0,0.06832881]
[1644269450605,0.01820845,43905.0,43899.0,0.11832881]
[1644269451507,0.19970849,43909.0,43904.0,0.21367598]
[1644269451706,0.19970849,43909.0,43905.0,0.0955]
[1644269452305,0.19970849,43909.0,43906.0,0.26542007]
[1644269452505,0.19970849,43909.0,43906.0,0.44559884]
[1644269453348,0.05,43907.0,43906.0,0.44559884]
[1644269453546,0.05,43907.0,43906.0,0.0455]
[1644269453745,0.19970849,43909.0,43906.0,0.0455]
[1644269454549,0.19970849,43909.0,43908.0,0.08441789]
[1644269455248,0.19970849,43909.0,43908.0,0.13441789]
[1644269455449,0.12326482,43906.0,43901.0,0.0455]
[1644269455649,0.19970849,43909.0,43905.0,0.08319077]
[1644269455848,0.19970849,43909.0,43899.0,0.02118444]
[1644269456052,0.05,43905.0,43900.0,0.324002]
[1644269456249,0.05,43905.0,43899.0,0.02118444]
[1644269456448,0.05,43906.0,43900.0,0.324002]
[1644269456648,0.26149979,43906.0,43899.0,0.02118444]
[1644269456849,0.08967454,43903.0,43899.0,0.02118444]
[1644269457106,0.29642857,43902.0,43899.0,0.02118444]
[1644269457397,0.05,43900.0,43899.0,0.02118444]
[1644269457598,0.05,43900.0,43896.0,0.05]
[1644269457795,0.05,43900.0,43893.0,0.64763942]
[1644269457997,0.08870386,43895.0,43893.0,0.98201889]
[1644269458196,0.05,43896.0,43894.0,0.324002]
[1644269458696,0.05,43896.0,43894.0,0.66565557]
[1644269459095,0.22546915,43901.0,43894.0,0.66565557]
[1644269459297,0.04739371,43896.0,43894.0,0.66565557]
[1644269459997,0.06902611,43895.0,43894.0,0.66565557]
[1644269460198,0.06902611,43895.0,43894.0,0.69005918]
[1644269460597,0.04739371,43896.0,43894.0,0.69005918]
[1644269460848,0.04739371,43896.0,43895.0,0.36605718]
[1644269461046,0.04739371,43896.0,43895.0,0.69005918]
[1644269461346,0.04739371,43896.0,43895.0,0.79005918]
[1644269461947,0.04739371,43896.0,43895.0,0.424002]
[1644269462948,0.02091451,43905.0,43898.0,0.208604]
[1644269463148,0.02091451,43905.0,43899.0,0.06544353]
[1644269463349,0.02091451,43905.0,43901.0,0.29543804]
[1644269463550,0.00069081,43910.0,43901.0,0.29543804]
[1644269463747,0.02104809,43905.0,43903.0,0.324002]
[1644269463948,0.02104809,43905.0,43903.0,0.61683375]
[1644269464151,0.02104809,43905.0,43904.0,0.29283175]
[1644269464350,0.02104809,43905.0,43901.0,0.39283175]
[1644269464597,0.02104809,43905.0,43901.0,0.28783175]
[1644269464797,0.02104809,43905.0,43902.0,0.324002]
[1644269465002,0.02104809,43905.0,43902.0,0.374002]
[1644269465396,0.02104809,43905.0,43902.0,0.1]
[1644269465597,0.2471022,43909.0,43903.0,0.324002]
[1644269465796,0.2471022,43909.0,43900.0,0.69425986]
[1644269465996,0.2471022,43909.0,43900.0,0.45260629]
[1644269466598,0.19970849,43909.0,43906.0,0.06894174]
[1644269467397,0.19470849,43909.0,43906.0,0.06633545]
[1644269467600,0.19470849,43909.0,43906.0,0.26195584]
[1644269467796,0.19470849,43909.0,43906.0,0.06633545]
[1644269468244,0.19470849,43909.0,43905.0,0.31750164]
[1644269468445,0.19470849,43909.0,43907.0,0.35915759]
[1644269468645,0.19470849,43909.0,43907.0,0.40915759]
[1644269468847,0.19470849,43909.0,43907.0,0.45915759]
[1644269469046,0.19470849,43909.0,43907.0,0.35915759]
[1644269469445,0.19470849,43909.0,43907.0,0.44398546]
[1644269469845,0.19470849,43909.0,43907.0,0.49398546]
[1644269470047,0.19470849,43909.0,43907.0,0.35915759]
[1644269470649,0.19470849,43909.0,43907.0,0.40915759]
[1644269470849,0.19470849,43909.0,43907.0,0.45915759]
[1644269471050,0.19470849,43909.0,43907.0,0.40915759]
[1644269474898,0.19470849,43909.0,43908.0,0.00260629]
[1644269476152,0.17517293,43909.0,43908.0,0.00260629]
[1644269477156,0.17517293,43909.0,43908.0,0.37210829]
[1644269477354,0.17517293,43909.0,43908.0,0.47210829]
[1644269477557,0.17517293,43909.0,43908.0,0.89750244]
[1644269477756,0.04739371,43922.0,43909.0,1.35]
[1644269477971,0.6077,43929.0,43908.0,0.47210829]
[1644269477972,0.6077,43929.0,43921.0,0.51834563]
[1644269478164,0.02,43929.0,43925.0,0.05]
[1644269478557,0.02,43929.0,43926.0,0.369502]
[1644269478756,0.02,43929.0,43927.0,0.26318549]
[1644269478956,0.02,43929.0,43928.0,0.324002]
[1644269479156,0.02022939,43929.0,43928.0,0.39853876]
[1644269479357,0.02022939,43929.0,43928.0,0.59853876]
[1644269479602,0.02022939,43929.0,43928.0,0.64403876]
[1644269479999,0.02,43929.0,43928.0,0.64403876]
[1644269480599,0.02,43929.0,43928.0,0.54403876]
[1644269480600,0.0073,43929.0,43928.0,0.54403876]
[1644269480806,0.0073,43929.0,43928.0,0.64403876]
[1644269481000,0.0073,43929.0,43928.0,0.54403876]
[1644269481601,0.0073,43929.0,43928.0,0.64403876]
[1644269483646,0.006567,43929.0,43928.0,0.64403876]
[1644269484248,0.006567,43929.0,43928.0,0.519502]
[1644269485047,0.006567,43929.0,43928.0,0.469502]
[1644269485248,0.006567,43929.0,43928.0,0.65633576]
[1644269486053,0.006567,43929.0,43928.0,0.91130309]
[1644269486849,0.006567,43929.0,43928.0,0.65633576]
[1644269487092,0.006567,43929.0,43928.0,0.60633576]
[1644269487292,0.001567,43929.0,43928.0,0.60633576]
[1644269487892,0.38710759,43938.0,43929.0,0.6]
[1644269488091,0.38710759,43938.0,43929.0,0.05]
[1644269488291,0.38710759,43938.0,43929.0,0.15]
[1644269488491,0.38710759,43938.0,43930.0,0.0455]
[1644269488694,0.38710759,43938.0,43929.0,0.0796214]
[1644269488890,0.38710759,43938.0,43930.0,0.0455]
[1644269489091,0.23342787,43935.0,43930.0,0.0455]
[1644269489492,0.25355134,43932.0,43930.0,0.0455]
[1644269490093,0.25355134,43932.0,43930.0,0.0955]
[1644269490292,0.2816839,43938.0,43926.0,0.05]
[1644269490491,0.2816839,43938.0,43925.0,0.15]
[1644269490748,0.2816839,43938.0,43926.0,0.0955]
[1644269491150,0.21950298,43933.0,43926.0,0.0955]
[1644269491351,0.21509752,43932.0,43926.0,0.0955]
[1644269491848,0.07134405,43931.0,43926.0,0.0955]
[1644269492051,0.07134405,43931.0,43926.0,0.05]
[1644269492250,0.07134405,43931.0,43924.0,0.2]
[1644269492848,0.07134405,43931.0,43921.0,0.49947427]
[1644269493049,0.06947322,43924.0,43922.0,0.324002]
[1644269493652,0.30567448,43923.0,43922.0,0.324002]
[1644269493850,0.30567448,43923.0,43920.0,0.02122388]
[1644269494251,0.24074634,43922.0,43920.0,0.02122388]
[1644269494502,0.31221136,43921.0,43920.0,0.02122388]
[1644269495293,0.63621336,43921.0,43920.0,0.02122388]
[1644269495693,0.31221136,43921.0,43912.0,0.33757479]
[1644269495892,0.25818501,43917.0,43912.0,0.33757479]
[1644269496093,0.25818501,43917.0,43913.0,0.324002]
[1644269496293,0.25818501,43917.0,43913.0,0.374002]
[1644269496493,0.25818501,43917.0,43913.0,0.324002]
[1644269496699,0.14713765,43917.0,43913.0,0.324002]
[1644269496894,0.06744476,43914.0,43913.0,0.324002]
[1644269500451,0.06744476,43914.0,43913.0,0.13998008]
[1644269502294,0.35374765,43914.0,43913.0,0.13998008]
[1644269502498,0.06744476,43914.0,43913.0,0.13998008]
[1644269502696,0.34385139,43921.0,43913.0,0.13998008]
[1644269502893,0.0455,43920.0,43913.0,0.13998008]
[1644269503492,0.23244144,43918.0,43913.0,0.13998008]
[1644269503894,0.06304083,43918.0,43916.0,0.24536082]
[1644269504096,0.32023302,43928.0,43916.0,0.24536082]
[1644269504911,0.26555838,43927.0,43918.0,0.2089193]
[1644269505097,0.24906673,43925.0,43918.0,0.2089193]
[1644269505297,0.323897,43924.0,43918.0,0.2089193]
[1644269505513,0.06787377,43920.0,43916.0,0.24536082]
[1644269505744,0.06787377,43920.0,43914.0,0.00276427]
[1644269506546,0.319013,43920.0,43913.0,0.16176782]
[1644269506745,0.24336914,43918.0,43913.0,0.16176782]
[1644269507746,0.319013,43920.0,43913.0,0.16176782]
[1644269507945,0.06787377,43920.0,43914.0,0.323897]
[1644269508546,0.06787377,43920.0,43916.0,0.35920716]
[1644269509901,0.06787377,43920.0,43913.0,0.13998008]
[1644269510899,0.06787377,43920.0,43913.0,0.44723183]
[1644269511097,0.06787377,43920.0,43915.0,0.20170702]
[1644269511299,0.00029201,43928.0,43915.0,0.39416816]
[1644269511499,0.36305407,43929.0,43915.0,0.39416816]
[1644269511699,0.00029201,43928.0,43915.0,0.39416816]
[1644269511898,0.01806703,43928.0,43915.0,0.39416816]
[1644269512097,0.01835904,43928.0,43915.0,0.39416816]
[1644269512298,0.24904721,43925.0,43915.0,0.39416816]
[1644269512501,0.24904721,43925.0,43916.0,0.08595036]
[1644269512502,0.06348634,43924.0,43916.0,0.08595036]
[1644269512900,0.00029201,43927.0,43916.0,0.08595036]
[1644269513101,0.01806703,43928.0,43916.0,0.08595036]
[1644269513344,0.00029201,43927.0,43916.0,0.08595036]
[1644269513544,0.01835904,43928.0,43916.0,0.08595036]
[1644269513744,0.00029201,43927.0,43916.0,0.10503823]
[1644269513945,0.248652,43926.0,43922.0,0.22785358]
[1644269514248,0.323897,43925.0,43916.0,0.10503823]
[1644269514445,0.29054765,43925.0,43916.0,0.10503823]
[1644269514644,0.28453307,43925.0,43916.0,0.10503823]
[1644269514845,0.31816675,43926.0,43916.0,0.10503823]
[1644269515149,0.31816675,43926.0,43919.0,0.19753515]
[1644269515344,0.06951475,43926.0,43919.0,0.19753515]
[1644269515846,0.06980676,43926.0,43919.0,0.19753515]
[1644269516345,0.00029201,43927.0,43919.0,0.19753515]
[1644269516544,0.02225218,43928.0,43919.0,0.19753515]
[1644269516744,0.00029201,43927.0,43919.0,0.19753515]
[1644269517009,0.02225218,43928.0,43919.0,0.24753515]
[1644269517197,0.06378243,43925.0,43919.0,0.24753515]